[Event "***Titled Tuesday 3|2 Blitz"]
[Site "Chess.com"]
[Date "2017.02.07"]
[Round "9"]
[White "ChristopherYoo"]
[Black "proxy6"]
[Result "1-0"]
[WhiteElo "2119"]
[BlackElo "2089"]
[TimeControl "180+2"]
[EndTime "15:14:13 PST"]
[Termination "ChristopherYoo won by resignation"]

1. e4 {[%clk 0:03:02]} 1... e5 {[%clk 0:03:00.4]} 2. Nf3 {[%clk 0:03:00.4]} 2...
Nc6 {[%clk 0:03:01.8]} 3. Bb5 {[%clk 0:02:57.9]} 3... a6 {[%clk 0:03:03.2]} 4.
Ba4 {[%clk 0:02:56.7]} 4... Nf6 {[%clk 0:03:04.5]} 5. O-O {[%clk 0:02:55.3]}
5... Be7 {[%clk 0:03:05.2]} 6. Re1 {[%clk 0:02:52.6]} 6... b5 {[%clk 0:03:06.5]}
7. Bb3 {[%clk 0:02:49]} 7... d6 {[%clk 0:03:07.4]} 8. c3 {[%clk 0:02:49.9]} 8...
O-O {[%clk 0:03:07.3]} 9. h3 {[%clk 0:02:48.2]} 9... Nb8 {[%clk 0:03:06.7]} 10.
d4 {[%clk 0:02:47.9]} 10... Nbd7 {[%clk 0:03:05.9]} 11. Nbd2 {[%clk 0:02:48.5]}
11... Bb7 {[%clk 0:03:06.7]} 12. Bc2 {[%clk 0:02:48.4]} 12... Re8 {[%clk
0:03:05.3]} 13. Nf1 {[%clk 0:02:49]} 13... Bf8 {[%clk 0:03:04]} 14. Ng3 {[%clk
0:02:49.5]} 14... g6 {[%clk 0:03:04.1]} 15. Bg5 {[%clk 0:02:48.7]} 15... Bg7
{[%clk 0:03:04.5]} 16. Qd2 {[%clk 0:02:39]} 16... c6 {[%clk 0:02:37.2]} 17. Bh6
{[%clk 0:02:24.8]} 17... Bh8 {[%clk 0:02:35]} 18. Nf5 {[%clk 0:01:28.6]} 18...
Qc7 {[%clk 0:02:06]} 19. Bb3 {[%clk 0:01:20.6]} 19... Rad8 {[%clk 0:01:49.2]}
20. Rad1 {[%clk 0:00:24.7]} 20... d5 {[%clk 0:01:43.3]} 21. dxe5 {[%clk
0:00:21.4]} 21... Nxe5 {[%clk 0:01:37.4]} 22. Nxe5 {[%clk 0:00:20.5]} 22... Qxe5
{[%clk 0:01:34.2]} 23. Bf4 {[%clk 0:00:19.3]} 23... Qe6 {[%clk 0:01:34.3]} 24.
Nh6+ {[%clk 0:00:17.8]} 24... Kf8 {[%clk 0:01:26.5]} 25. exd5 {[%clk 0:00:17.7]}
25... Qc8 {[%clk 0:01:23.3]} 26. Rxe8+ {[%clk 0:00:08.4]} 26... Nxe8 {[%clk
0:01:22.4]} 27. d6 {[%clk 0:00:08.6]} 27... Rd7 {[%clk 0:01:10.7]} 28. Qe3
{[%clk 0:00:05.2]} 28... Qd8 {[%clk 0:01:10.5]} 29. Nxf7 {[%clk 0:00:04.9]}
29... Rxf7 {[%clk 0:01:10.8]} 30. Bxf7 {[%clk 0:00:05.5]} 30... Kxf7 {[%clk
0:01:12]} 31. d7 {[%clk 0:00:06.4]} 31... Nf6 {[%clk 0:01:03.9]} 32. Bc7 {[%clk
0:00:07.1]} 32... Qxd7 {[%clk 0:00:43]} 33. Rxd7+ {[%clk 0:00:07.2]} 33... Nxd7
{[%clk 0:00:44.9]} 34. Qa7 {[%clk 0:00:08.3]} 34... Bc8 {[%clk 0:00:43.8]} 35.
Qa8 {[%clk 0:00:09.6]} 1-0

[Event "***Titled Tuesday 3|2 Blitz"]
[Site "Chess.com"]
[Date "2017.02.07"]
[Round "9"]
[White "MagnusCarlsen"]
[Black "ShimanovAlex"]
[Result "1-0"]
[WhiteElo "2962"]
[BlackElo "2664"]
[TimeControl "180+2"]
[EndTime "15:14:51 PST"]
[Termination "MagnusCarlsen won by resignation"]

1. d4 {[%clk 0:02:58.5]} 1... d5 {[%clk 0:03:00.3]} 2. Bf4 {[%clk 0:02:59.6]}
2... c5 {[%clk 0:02:59.5]} 3. e3 {[%clk 0:03:01.1]} 3... Nc6 {[%clk 0:03:00.5]}
4. c3 {[%clk 0:03:02]} 4... Nf6 {[%clk 0:03:00.9]} 5. Nd2 {[%clk 0:03:02.9]}
5... Bg4 {[%clk 0:03:01.5]} 6. Qb3 {[%clk 0:03:02.6]} 6... Qd7 {[%clk
0:02:57.3]} 7. Ngf3 {[%clk 0:03:02.5]} 7... c4 {[%clk 0:02:48.3]} 8. Qd1 {[%clk
0:03:02.7]} 8... e6 {[%clk 0:02:49]} 9. Be2 {[%clk 0:03:03.7]} 9... Bf5 {[%clk
0:02:38.3]} 10. O-O {[%clk 0:02:57.4]} 10... Bd6 {[%clk 0:02:38.2]} 11. Bxd6
{[%clk 0:02:53.3]} 11... Qxd6 {[%clk 0:02:39.4]} 12. b3 {[%clk 0:02:54.4]} 12...
b5 {[%clk 0:02:24]} 13. a4 {[%clk 0:02:54.9]} 13... b4 {[%clk 0:02:25.1]} 14.
Qc1 {[%clk 0:02:51.8]} 14... cxb3 {[%clk 0:02:20.2]} 15. Nxb3 {[%clk 0:02:33.1]}
15... O-O {[%clk 0:02:12.3]} 16. Nc5 {[%clk 0:02:21]} 16... Rab8 {[%clk
0:02:03.7]} 17. Bb5 {[%clk 0:02:14.3]} 17... Ne4 {[%clk 0:01:35]} 18. Nxe4
{[%clk 0:01:55.2]} 18... Bxe4 {[%clk 0:01:35]} 19. Bxc6 {[%clk 0:01:48.9]} 19...
b3 {[%clk 0:01:04.4]} 20. Bb5 {[%clk 0:01:49.9]} 20... a6 {[%clk 0:01:03.9]} 21.
Nd2 {[%clk 0:01:42.9]} 21... axb5 {[%clk 0:00:59.8]} 22. Nxb3 {[%clk 0:01:44.2]}
22... bxa4 {[%clk 0:00:46.4]} 23. Nc5 {[%clk 0:01:45.3]} 23... Rfc8 {[%clk
0:00:36.7]} 24. Rxa4 {[%clk 0:01:43.9]} 24... Rb1 {[%clk 0:00:34.4]} 25. Qd2
{[%clk 0:01:40]} 25... Rxf1+ {[%clk 0:00:30.6]} 26. Kxf1 {[%clk 0:01:41.1]}
26... Qb6 {[%clk 0:00:31.7]} 27. Rb4 {[%clk 0:01:36.8]} 27... Qa7 {[%clk
0:00:31.6]} 28. Qb2 {[%clk 0:01:30.7]} 28... Bg6 {[%clk 0:00:25.2]} 29. h3
{[%clk 0:01:30.6]} 29... h6 {[%clk 0:00:25.6]} 30. Kg1 {[%clk 0:01:32]} 30...
Qe7 {[%clk 0:00:26.4]} 31. Rb7 {[%clk 0:01:31.1]} 31... Qg5 {[%clk 0:00:27.1]}
32. Rb8 {[%clk 0:01:32.4]} 32... Qd8 {[%clk 0:00:25.2]} 33. Rb7 {[%clk
0:01:33.2]} 33... Qg5 {[%clk 0:00:24.2]} 34. Kh2 {[%clk 0:01:27.5]} 34... Qf5
{[%clk 0:00:17.2]} 35. Rb8 {[%clk 0:01:25.4]} 35... Rxb8 {[%clk 0:00:15.6]} 36.
Qxb8+ {[%clk 0:01:27.3]} 36... Kh7 {[%clk 0:00:17.1]} 37. Nd7 {[%clk 0:01:28.3]}
37... h5 {[%clk 0:00:18.3]} 38. Nf8+ {[%clk 0:01:18.6]} 38... Kh6 {[%clk
0:00:19]} 39. Qg3 {[%clk 0:01:20.2]} 39... Bh7 {[%clk 0:00:16.4]} 40. h4 {[%clk
0:01:20.5]} 40... Bg8 {[%clk 0:00:09.5]} 41. f3 {[%clk 0:01:11.9]} 41... f6
{[%clk 0:00:10.6]} 42. c4 {[%clk 0:01:07.7]} 42... g5 {[%clk 0:00:08.6]} 43. c5
{[%clk 0:01:04.9]} 43... gxh4 {[%clk 0:00:07.8]} 44. Qxh4 {[%clk 0:01:05.5]}
44... e5 {[%clk 0:00:08.5]} 45. c6 {[%clk 0:01:04.3]} 45... Be6 {[%clk
0:00:06.1]} 46. g4 {[%clk 0:00:44.3]} 46... Qc2+ {[%clk 0:00:04.8]} 47. Kg3
{[%clk 0:00:45.5]} 47... Bc8 {[%clk 0:00:05.6]} 48. Qxf6+ {[%clk 0:00:46.5]} 1-0

[Event "***Titled Tuesday 3|2 Blitz"]
[Site "Chess.com"]
[Date "2017.02.07"]
[Round "9"]
[White "E-Shaposhnikov"]
[Black "Noukii"]
[Result "0-1"]
[WhiteElo "2729"]
[BlackElo "2640"]
[TimeControl "180+2"]
[EndTime "15:15:02 PST"]
[Termination "Noukii won on time"]

1. Nf3 {[%clk 0:03:02]} 1... Nf6 {[%clk 0:02:50.5]} 2. c4 {[%clk 0:03:03.3]}
2... c6 {[%clk 0:02:50.5]} 3. d4 {[%clk 0:03:03.8]} 3... d5 {[%clk 0:02:47.6]}
4. e3 {[%clk 0:03:04.5]} 4... Bf5 {[%clk 0:02:48.9]} 5. Nc3 {[%clk 0:03:02]}
5... e6 {[%clk 0:02:50.4]} 6. Nh4 {[%clk 0:02:58.8]} 6... Be4 {[%clk 0:02:51.8]}
7. Qb3 {[%clk 0:02:48.9]} 7... Qc7 {[%clk 0:02:50.4]} 8. f3 {[%clk 0:02:46.2]}
8... Bg6 {[%clk 0:02:47.8]} 9. g3 {[%clk 0:02:42.9]} 9... Be7 {[%clk 0:02:48.5]}
10. Bd2 {[%clk 0:02:34.5]} 10... O-O {[%clk 0:02:46.4]} 11. Rc1 {[%clk
0:02:17.4]} 11... dxc4 {[%clk 0:02:46.4]} 12. Bxc4 {[%clk 0:02:17.5]} 12... a6
{[%clk 0:02:48]} 13. Nxg6 {[%clk 0:02:11.9]} 13... hxg6 {[%clk 0:02:48.9]} 14.
a4 {[%clk 0:02:12.1]} 14... c5 {[%clk 0:02:47.6]} 15. d5 {[%clk 0:02:09.7]}
15... exd5 {[%clk 0:02:48.8]} 16. Nxd5 {[%clk 0:02:11.6]} 16... Nxd5 {[%clk
0:02:50.4]} 17. Bxd5 {[%clk 0:02:13]} 17... Nc6 {[%clk 0:02:52.3]} 18. O-O
{[%clk 0:02:08.9]} 18... Rad8 {[%clk 0:02:51.8]} 19. Bc3 {[%clk 0:01:57.3]}
19... b6 {[%clk 0:02:35.3]} 20. Qc4 {[%clk 0:01:41.1]} 20... a5 {[%clk
0:02:33.9]} 21. Qe4 {[%clk 0:01:35.7]} 21... Rd6 {[%clk 0:02:24.2]} 22. Rcd1
{[%clk 0:01:10.1]} 22... Bf6 {[%clk 0:02:18.7]} 23. Bc4 {[%clk 0:01:01]} 23...
Bxc3 {[%clk 0:01:45.7]} 24. bxc3 {[%clk 0:01:02.9]} 24... Rfd8 {[%clk
0:01:42.3]} 25. Rd5 {[%clk 0:00:46.2]} 25... Ne7 {[%clk 0:01:33.1]} 26. Re5
{[%clk 0:00:38.2]} 26... Kf8 {[%clk 0:01:04.7]} 27. Qf4 {[%clk 0:00:35.3]} 27...
Rf6 {[%clk 0:01:00.1]} 28. Qe4 {[%clk 0:00:34.9]} 28... Nc6 {[%clk 0:00:56]} 29.
Rd5 {[%clk 0:00:32.8]} 29... Rxd5 {[%clk 0:00:55.8]} 30. Bxd5 {[%clk 0:00:33.4]}
30... Rd6 {[%clk 0:00:46.8]} 31. Rd1 {[%clk 0:00:26.7]} 31... Qd7 {[%clk
0:00:43.2]} 32. c4 {[%clk 0:00:14.1]} 32... Nb4 {[%clk 0:00:39]} 33. Rd2 {[%clk
0:00:10.3]} 33... Qxa4 {[%clk 0:00:34.3]} 34. Qh4 {[%clk 0:00:09.7]} 34... Nxd5
{[%clk 0:00:33.2]} 35. Qh8+ {[%clk 0:00:09.7]} 35... Ke7 {[%clk 0:00:34.3]} 36.
cxd5 {[%clk 0:00:11.1]} 36... Qa1+ {[%clk 0:00:33.9]} 37. Kf2 {[%clk 0:00:11.6]}
37... Rxd5 {[%clk 0:00:33.7]} 38. Qh4+ {[%clk 0:00:06.7]} 38... f6 {[%clk
0:00:34.7]} 39. Qe4+ {[%clk 0:00:07.5]} 39... Re5 {[%clk 0:00:23.3]} 40. Qc6
{[%clk 0:00:05.8]} 40... Kf7 {[%clk 0:00:17.8]} 0-1

[Event "***Titled Tuesday 3|2 Blitz"]
[Site "Chess.com"]
[Date "2017.02.07"]
[Round "9"]
[White "stefanodinn"]
[Black "Blitzstream"]
[Result "1-0"]
[WhiteElo "2250"]
[BlackElo "2423"]
[TimeControl "180+2"]
[EndTime "15:15:03 PST"]
[Termination "stefanodinn won by resignation"]

1. e4 {[%clk 0:03:02]} 1... d5 {[%clk 0:03:00.8]} 2. exd5 {[%clk 0:03:01.7]}
2... Nf6 {[%clk 0:03:02.4]} 3. Bb5+ {[%clk 0:03:01.6]} 3... Bd7 {[%clk
0:03:01.3]} 4. Be2 {[%clk 0:02:56.8]} 4... c6 {[%clk 0:02:52.5]} 5. dxc6 {[%clk
0:02:57.1]} 5... Bxc6 {[%clk 0:02:53.9]} 6. Nf3 {[%clk 0:02:58]} 6... g5 {[%clk
0:02:55]} 7. O-O {[%clk 0:02:57.7]} 7... g4 {[%clk 0:02:45.2]} 8. Ne1 {[%clk
0:02:46.4]} 8... h5 {[%clk 0:02:45.2]} 9. d4 {[%clk 0:02:46.6]} 9... h4 {[%clk
0:02:45.7]} 10. c4 {[%clk 0:02:41.6]} 10... g3 {[%clk 0:02:40]} 11. d5 {[%clk
0:02:34.7]} 11... gxh2+ {[%clk 0:02:36.9]} 12. Kh1 {[%clk 0:02:33.9]} 12... Bd7
{[%clk 0:02:12.9]} 13. Nc3 {[%clk 0:02:34.1]} 13... Na6 {[%clk 0:02:10.2]} 14.
Bf4 {[%clk 0:02:23.2]} 14... Bh6 {[%clk 0:02:10.1]} 15. Bxh2 {[%clk 0:02:22.6]}
15... h3 {[%clk 0:02:05.6]} 16. g4 {[%clk 0:02:19.1]} 16... Rg8 {[%clk
0:01:58.7]} 17. Rg1 {[%clk 0:02:16.7]} 17... Qb6 {[%clk 0:01:55.6]} 18. Nd3
{[%clk 0:02:11.4]} 18... Nc5 {[%clk 0:01:55.4]} 19. Nxc5 {[%clk 0:01:48.8]}
19... Qxc5 {[%clk 0:01:56.1]} 20. f4 {[%clk 0:01:47.2]} 20... Bg7 {[%clk
0:00:25.3]} 21. g5 {[%clk 0:01:42.7]} 21... Nh7 {[%clk 0:00:21.1]} 22. Qd3
{[%clk 0:01:42.8]} 22... O-O-O {[%clk 0:00:20.4]} 23. Qxh7 {[%clk 0:01:40]}
23... Bxc3 {[%clk 0:00:20.2]} 24. bxc3 {[%clk 0:01:37.8]} 24... Bc6 {[%clk
0:00:21]} 25. Bf3 {[%clk 0:01:29.6]} 25... Qe3 {[%clk 0:00:14.7]} 26. Qe4 {[%clk
0:01:18]} 26... Qxe4 {[%clk 0:00:08.9]} 27. Bxe4 {[%clk 0:01:18.9]} 27... Bd7
{[%clk 0:00:09.9]} 28. f5 {[%clk 0:01:10.1]} 28... b6 {[%clk 0:00:08.1]} 29.
Raf1 {[%clk 0:00:56.2]} 29... a5 {[%clk 0:00:08.3]} 30. Be5 {[%clk 0:00:54.4]}
30... b5 {[%clk 0:00:08.7]} 31. c5 {[%clk 0:00:53.8]} 31... f6 {[%clk
0:00:07.2]} 32. gxf6 {[%clk 0:00:53.4]} 32... exf6 {[%clk 0:00:08.9]} 33. Bxf6
{[%clk 0:00:52.8]} 33... Rdf8 {[%clk 0:00:10.1]} 34. Rxg8 {[%clk 0:00:48.8]}
34... Rxg8 {[%clk 0:00:11.6]} 35. Rg1 {[%clk 0:00:48.1]} 35... Re8 {[%clk
0:00:12.3]} 36. Rg4 {[%clk 0:00:43.7]} 36... b4 {[%clk 0:00:11.1]} 37. cxb4
{[%clk 0:00:44.2]} 37... axb4 {[%clk 0:00:13]} 38. Kh2 {[%clk 0:00:41]} 38... b3
{[%clk 0:00:13.9]} 39. axb3 {[%clk 0:00:40.4]} 39... Bb5 {[%clk 0:00:15.5]} 40.
d6 {[%clk 0:00:34.5]} 40... Rf8 {[%clk 0:00:10.5]} 41. Be7 {[%clk 0:00:34.6]}
41... Rh8 {[%clk 0:00:11.4]} 42. f6 {[%clk 0:00:28.8]} 42... Bd7 {[%clk
0:00:11.9]} 43. Rf4 {[%clk 0:00:25.6]} 43... Be6 {[%clk 0:00:12.9]} 44. Bf5
{[%clk 0:00:25.2]} 44... Kd7 {[%clk 0:00:12.8]} 45. Bxe6+ {[%clk 0:00:25.6]}
45... Kxe6 {[%clk 0:00:14.7]} 46. f7 {[%clk 0:00:23.7]} 46... Rg8 {[%clk
0:00:15.6]} 47. fxg8=Q+ {[%clk 0:00:23.1]} 1-0

[Event "***Titled Tuesday 3|2 Blitz"]
[Site "Chess.com"]
[Date "2017.02.07"]
[Round "9"]
[White "kiborg1987"]
[Black "Maitreia"]
[Result "1-0"]
[WhiteElo "2633"]
[BlackElo "2486"]
[TimeControl "180+2"]
[EndTime "15:15:20 PST"]
[Termination "kiborg1987 won on time"]

1. d4 {[%clk 0:03:02]} 1... Nf6 {[%clk 0:03:00.5]} 2. Bg5 {[%clk 0:03:02.4]}
2... g6 {[%clk 0:03:01.3]} 3. Bxf6 {[%clk 0:03:03.4]} 3... exf6 {[%clk
0:03:03.2]} 4. e3 {[%clk 0:03:04.7]} 4... d5 {[%clk 0:03:05.1]} 5. g3 {[%clk
0:03:05]} 5... c6 {[%clk 0:03:01.8]} 6. Bg2 {[%clk 0:03:04.5]} 6... Qb6 {[%clk
0:03:01.5]} 7. b3 {[%clk 0:03:04.8]} 7... Qa5+ {[%clk 0:02:58.9]} 8. c3 {[%clk
0:03:02.8]} 8... h5 {[%clk 0:02:55.8]} 9. h4 {[%clk 0:03:03.5]} 9... Bd6 {[%clk
0:02:55.2]} 10. Ne2 {[%clk 0:03:04.4]} 10... Bg4 {[%clk 0:02:55.8]} 11. Qd3
{[%clk 0:02:58.8]} 11... O-O {[%clk 0:02:53.6]} 12. O-O {[%clk 0:02:57.8]} 12...
Nd7 {[%clk 0:02:54]} 13. c4 {[%clk 0:02:58.3]} 13... dxc4 {[%clk 0:02:52.1]} 14.
bxc4 {[%clk 0:03:00.2]} 14... Rfe8 {[%clk 0:02:50]} 15. Nbc3 {[%clk 0:03:00.7]}
15... Rad8 {[%clk 0:02:50.8]} 16. Rab1 {[%clk 0:02:32.5]} 16... Qc7 {[%clk
0:02:51.3]} 17. Rb2 {[%clk 0:02:31.5]} 17... Ba3 {[%clk 0:02:43.7]} 18. Rb3
{[%clk 0:02:27.2]} 18... Nc5 {[%clk 0:02:44.3]} 19. Qb1 {[%clk 0:02:01.8]} 19...
Nxb3 {[%clk 0:02:44.3]} 20. axb3 {[%clk 0:02:03.7]} 20... Bxe2 {[%clk
0:02:45.2]} 21. Nxe2 {[%clk 0:02:04.6]} 21... Bf8 {[%clk 0:02:41.7]} 22. Bf3
{[%clk 0:02:04.9]} 22... Kg7 {[%clk 0:02:42.4]} 23. Kg2 {[%clk 0:02:06.2]} 23...
f5 {[%clk 0:02:42.3]} 24. Qa1 {[%clk 0:02:06.6]} 24... a6 {[%clk 0:02:41.2]} 25.
c5 {[%clk 0:02:01]} 25... Be7 {[%clk 0:02:41.7]} 26. Nf4 {[%clk 0:02:01.7]}
26... Bf6 {[%clk 0:02:41.9]} 27. b4 {[%clk 0:01:59.7]} 27... Ra8 {[%clk
0:02:25.8]} 28. Qa5 {[%clk 0:01:56.6]} 28... Bd8 {[%clk 0:02:19.5]} 29. Qa4
{[%clk 0:01:56.4]} 29... Qd7 {[%clk 0:02:14]} 30. d5 {[%clk 0:01:54.6]} 30...
Rc8 {[%clk 0:01:37.6]} 31. Rd1 {[%clk 0:01:46.5]} 31... Qc7 {[%clk 0:01:22.6]}
32. dxc6 {[%clk 0:01:44.9]} 32... bxc6 {[%clk 0:01:23.4]} 33. Rd6 {[%clk
0:01:45.1]} 33... Qb8 {[%clk 0:01:09]} 34. Bxc6 {[%clk 0:01:10.1]} 34... Re5
{[%clk 0:01:10.1]} 35. Qxa6 {[%clk 0:01:01.4]} 35... Be7 {[%clk 0:01:01.7]} 36.
Rd7 {[%clk 0:01:00.6]} 36... Rc7 {[%clk 0:00:58.2]} 37. Rxc7 {[%clk 0:00:59.4]}
37... Qxc7 {[%clk 0:01:00.1]} 38. Qb7 {[%clk 0:00:51.1]} 38... Qd8 {[%clk
0:00:54.7]} 39. Bd5 {[%clk 0:00:45.6]} 39... Qe8 {[%clk 0:00:35.1]} 40. Nd3
{[%clk 0:00:42.9]} 40... Rxd5 {[%clk 0:00:13.9]} 41. Qxd5 {[%clk 0:00:43.3]}
41... Qb5 {[%clk 0:00:13.3]} 42. Ne5 {[%clk 0:00:43.6]} 42... Qe8 {[%clk
0:00:11.9]} 43. c6 {[%clk 0:00:39.3]} 43... Bd8 {[%clk 0:00:12.9]} 44. b5 {[%clk
0:00:39.2]} 44... Bc7 {[%clk 0:00:14]} 45. Nd7 {[%clk 0:00:40]} 45... Qd8 {[%clk
0:00:13.3]} 46. Qd4+ {[%clk 0:00:38.6]} 46... f6 {[%clk 0:00:14.9]} 47. b6
{[%clk 0:00:39.6]} 47... Bb8 {[%clk 0:00:07.9]} 48. Qxf6+ {[%clk 0:00:30.3]}
48... Qxf6 {[%clk 0:00:05.2]} 49. Nxf6 {[%clk 0:00:32.2]} 1-0

[Event "***Titled Tuesday 3|2 Blitz"]
[Site "Chess.com"]
[Date "2017.02.07"]
[Round "9"]
[White "HouseOfDurin"]
[Black "ka1ser64"]
[Result "1-0"]
[WhiteElo "1902"]
[BlackElo "2272"]
[TimeControl "180+2"]
[EndTime "15:15:39 PST"]
[Termination "HouseOfDurin won by resignation"]

1. c4 {[%clk 0:03:02]} 1... e6 {[%clk 0:02:58.8]} 2. Nc3 {[%clk 0:03:01]} 2...
Nf6 {[%clk 0:02:59.9]} 3. e4 {[%clk 0:02:57.5]} 3... d5 {[%clk 0:03:00.9]} 4. e5
{[%clk 0:02:58.6]} 4... Nfd7 {[%clk 0:02:46.4]} 5. d4 {[%clk 0:02:50.5]} 5...
dxc4 {[%clk 0:02:40.8]} 6. Bxc4 {[%clk 0:02:52.4]} 6... Nb6 {[%clk 0:02:38.2]}
7. Bb3 {[%clk 0:02:40.4]} 7... Be7 {[%clk 0:02:39.2]} 8. f4 {[%clk 0:02:34.3]}
8... O-O {[%clk 0:02:27.9]} 9. Nf3 {[%clk 0:02:33]} 9... c5 {[%clk 0:02:28.6]}
10. a4 {[%clk 0:02:11.9]} 10... cxd4 {[%clk 0:02:13.1]} 11. Qxd4 {[%clk
0:02:12.2]} 11... Nc6 {[%clk 0:02:05.5]} 12. Qe4 {[%clk 0:01:53.2]} 12... Nb4
{[%clk 0:01:25.2]} 13. O-O {[%clk 0:01:30.9]} 13... Bd7 {[%clk 0:01:19.6]} 14.
Rd1 {[%clk 0:01:25.1]} 14... Qc7 {[%clk 0:01:16]} 15. Nb5 {[%clk 0:00:54.5]}
15... Bxb5 {[%clk 0:01:14.3]} 16. axb5 {[%clk 0:00:56.4]} 16... Qc5+ {[%clk
0:01:11.1]} 17. Be3 {[%clk 0:00:48.4]} 17... Qxb5 {[%clk 0:01:12.1]} 18. Qxb7
{[%clk 0:00:47]} 18... Bc5 {[%clk 0:01:08]} 19. Nd4 {[%clk 0:00:40.2]} 19...
Bxd4 {[%clk 0:01:02.6]} 20. Bxd4 {[%clk 0:00:41.9]} 20... Rfb8 {[%clk
0:00:48.7]} 21. Qe4 {[%clk 0:00:26.9]} 21... N4d5 {[%clk 0:00:14.1]} 22. Bc2
{[%clk 0:00:26.2]} 22... g6 {[%clk 0:00:15.2]} 23. Bd3 {[%clk 0:00:22.9]} 23...
Qb4 {[%clk 0:00:15.3]} 24. Bc3 {[%clk 0:00:19.5]} 24... Qxe4 {[%clk 0:00:15.8]}
25. Bxe4 {[%clk 0:00:21.4]} 25... Rd8 {[%clk 0:00:16.4]} 26. Ra6 {[%clk
0:00:18.3]} 26... Rac8 {[%clk 0:00:17.4]} 27. Rxa7 {[%clk 0:00:18.5]} 27... Nxc3
{[%clk 0:00:18.5]} 28. Rxd8+ {[%clk 0:00:18.4]} 28... Rxd8 {[%clk 0:00:19.8]}
29. bxc3 {[%clk 0:00:19.4]} 29... Rd1+ {[%clk 0:00:20.7]} 30. Kf2 {[%clk
0:00:20.4]} 30... Rc1 {[%clk 0:00:21.8]} 31. Rc7 {[%clk 0:00:18.4]} 31... Na4
{[%clk 0:00:21.7]} 32. c4 {[%clk 0:00:19]} 32... Nc3 {[%clk 0:00:22.9]} 33. Bd3
{[%clk 0:00:14.4]} 33... Rd1 {[%clk 0:00:22.3]} 34. Be2 {[%clk 0:00:14.9]} 34...
Rd2 {[%clk 0:00:23.2]} 35. Ke3 {[%clk 0:00:15.7]} 35... Rxe2+ {[%clk 0:00:19.5]}
36. Kd3 {[%clk 0:00:17]} 36... Rxg2 {[%clk 0:00:08.8]} 37. Kxc3 {[%clk
0:00:18.2]} 37... Rxh2 {[%clk 0:00:07.2]} 38. Rc8+ {[%clk 0:00:16.9]} 38... Kg7
{[%clk 0:00:08]} 39. c5 {[%clk 0:00:18]} 39... Rh4 {[%clk 0:00:05.5]} 40. c6
{[%clk 0:00:18.7]} 40... Rxf4 {[%clk 0:00:02.3]} 41. c7 {[%clk 0:00:20]} 41...
Rf1 {[%clk 0:00:03.6]} 42. Kc2 {[%clk 0:00:18.4]} 42... Rf2+ {[%clk 0:00:05.2]}
43. Kd3 {[%clk 0:00:18.7]} 43... Rf3+ {[%clk 0:00:05.6]} 44. Kd2 {[%clk
0:00:19.6]} 44... Rf2+ {[%clk 0:00:07]} 45. Kc1 {[%clk 0:00:19.6]} 45... Rf1+
{[%clk 0:00:08.2]} 46. Kb2 {[%clk 0:00:19.1]} 46... Rf2+ {[%clk 0:00:09.8]} 47.
Kb3 {[%clk 0:00:20.3]} 47... Rf3+ {[%clk 0:00:11.3]} 48. Kb4 {[%clk 0:00:21.6]}
48... Rf4+ {[%clk 0:00:12.5]} 49. Kb5 {[%clk 0:00:22.8]} 49... Rf5 {[%clk
0:00:12.9]} 50. Rd8 {[%clk 0:00:21.7]} 50... Rxe5+ {[%clk 0:00:13.8]} 51. Kb6
{[%clk 0:00:23.2]} 51... Re1 {[%clk 0:00:14.8]} 52. c8=Q {[%clk 0:00:24.2]}
52... Rb1+ {[%clk 0:00:16.7]} 53. Ka5 {[%clk 0:00:25.5]} 53... Ra1+ {[%clk
0:00:18.1]} 54. Kb4 {[%clk 0:00:26.8]} 54... Rb1+ {[%clk 0:00:20]} 55. Ka3
{[%clk 0:00:28.1]} 55... Ra1+ {[%clk 0:00:21.9]} 56. Kb2 {[%clk 0:00:28.5]}
56... Rf1 {[%clk 0:00:23.5]} 57. Qc3+ {[%clk 0:00:22.5]} 57... Kh6 {[%clk
0:00:21.5]} 58. Qh3+ {[%clk 0:00:20.9]} 58... Kg7 {[%clk 0:00:22.2]} 59. Qxf1
{[%clk 0:00:22.8]} 1-0